bitfinex/quotes_SOLUSD_20251201
["timestamp","ask_amount","ask_price","bid_price","bid_amount"]
[1764578021030,8.80994492,127.48,127.47,27.45666987]
[1764578024110,9.49994492,127.48,127.47,27.45666987]
[1764578029213,17.39044422,127.48,127.46,8.04547171]
[1764578029413,9.49994492,127.47,127.46,0.2]
[1764578029833,9.49994492,127.47,127.46,8.04559861]
[1764578035063,8.80994492,127.47,127.46,8.74559861]
[1764578035938,8.80994492,127.47,127.46,8.04559861]
[1764578036446,9.47994492,127.47,127.46,8.04559861]
[1764578036840,8.80994492,127.47,127.46,8.04559861]
[1764578038141,8.80994492,127.47,127.46,8.73559861]
[1764578038949,65.46,127.48,127.46,31.19003274]
[1764578039146,74.26994492,127.48,127.47,0.69]
[1764578040349,3.46,127.48,127.47,11.37542072]
[1764578040534,8.80994492,127.49,127.47,30.98787855]
[1764578040726,8.80994492,127.49,127.48,0.69]
[1764578042034,3.46,127.5,127.48,0.69]
[1764578042237,65.46,127.52,127.49,2.84043759]
[1764578042576,8.80994492,127.52,127.5,10.68357484]
[1764578042756,8.80994492,127.52,127.5,11.37357484]
[1764578043336,8.80994492,127.53,127.51,30.97926512]
[1764578043536,8.80994492,127.53,127.52,2.84043759]
[1764578043736,8.80994492,127.53,127.52,3.53043759]
[1764578043932,8.80994492,127.57,127.52,6.99043759]
[1764578044242,4.13,127.57,127.54,2.84043759]
[1764578044753,4.13,127.57,127.54,3.53043759]
[1764578046051,4.13,127.57,127.55,7.84006272]
[1764578046237,3.46,127.57,127.55,11.37050031]
[1764578046443,0.67,127.61,127.56,3.53043759]
[1764578046655,3.46,127.61,127.57,2.84043759]
[1764578046957,8.80994492,127.6,127.57,3.53043759]
[1764578047145,9.47994492,127.6,127.57,0.69]
[1764578048954,8.80994492,127.6,127.58,7.83821915]
[1764578049260,9.47994492,127.6,127.58,7.83821915]
[1764578049645,9.47994492,127.6,127.58,8.52821915]
[1764578050031,9.47994492,127.6,127.58,7.83821915]
[1764578050238,9.47994492,127.6,127.58,8.52821915]
[1764578050440,9.47994492,127.6,127.58,7.83821915]
[1764578052065,0.67,127.59,127.57,7.83860157]
[1764578052445,12.93994492,127.6,127.57,30.96612311]
[1764578052764,0.67,127.59,127.57,28.12568552]
[1764578053955,0.67,127.59,127.57,27.43568552]
[1764578054459,8.80994492,127.58,127.57,7.83860157]
[1764578054845,9.47994492,127.58,127.57,7.83860157]
[1764578055787,9.47994492,127.58,127.56,7.83916154]
[1764578056060,9.47994492,127.57,127.56,7.83916154]
[1764578056667,9.47994492,127.57,127.55,30.2798995]
[1764578056973,9.47994492,127.57,127.55,30.9698995]
[1764578058971,8.80994492,127.57,127.53,28.13330917]
[1764578059267,12.93994492,127.57,127.54,2.84043759]
[1764578059468,12.93994492,127.57,127.54,3.53043759]
[1764578060152,8.80994492,127.58,127.56,2.84043759]
[1764578060668,8.80994492,127.58,127.56,3.53043759]
[1764578061042,8.80994492,127.58,127.57,7.83883358]
[1764578062372,8.80994492,127.58,127.55,27.43876105]
[1764578062542,0.67,127.57,127.55,27.43876105]
[1764578062860,4.13,127.57,127.55,27.43876105]
[1764578063047,4.13,127.57,127.55,28.12876105]
[1764578064269,8.80994492,127.56,127.55,28.12876105]
[1764578065050,8.80994492,127.56,127.55,27.43876105]
[1764578066448,65.46,127.57,127.55,30.94919864]
[1764578072449,65.46,127.57,127.56,3.54043759]
[1764578072652,62.0,127.57,127.56,3.54043759]
[1764578073577,62.0,127.57,127.56,2.84043759]
[1764578073765,62.0,127.57,127.56,3.54043759]
[1764578074360,62.0,127.57,127.56,11.37988569]
[1764578076155,12.26994492,127.59,127.56,11.37988569]
[1764578076156,12.26994492,127.59,127.56,30.97850594]
[1764578076366,12.91994492,127.59,127.57,2.84043759]
[1764578076874,12.91994492,127.59,127.58,7.83821915]
[1764578077692,12.26994492,127.59,127.58,7.83821915]
[1764578077858,12.26994492,127.59,127.58,8.53821915]
[1764578078478,62.0,127.61,127.58,28.13376704]
[1764578078675,8.80994492,127.62,127.6,2.84043759]
[1764578078979,9.45994492,127.62,127.6,2.84043759]
[1764578079372,9.45994492,127.62,127.6,27.42946707]
[1764578082462,3.56,127.63,127.61,3.54043759]
[1764578082784,0.1,127.63,127.62,3.54043759]
[1764578082985,0.1,127.63,127.61,3.54043759]
[1764578085096,0.1,127.63,127.62,7.83576241]
[1764578085496,0.1,127.63,127.62,11.3762]
[1764578092498,0.1,127.63,127.62,12.96161213]
[1764578096277,0.1,127.63,127.62,8.53576241]
[1764578096499,0.1,127.63,127.62,12.96161213]
[1764578097077,0.1,127.63,127.62,7.83576241]
[1764578097281,0.1,127.63,127.62,8.52576241]
[1764578097482,0.1,127.63,127.62,12.95161213]
[1764578108197,0.1,127.63,127.62,8.52576241]
[1764578108389,0.1,127.63,127.62,12.95161213]
[1764578110145,0.76,127.67,127.62,76.14567998]
[1764578110146,0.1,127.67,127.62,76.14567998]
[1764578110287,0.1,127.67,127.66,4.42584972]
[1764578110906,0.1,127.67,127.66,5.11584972]
[1764578111899,0.1,127.67,127.66,12.94915694]
[1764578119708,1e-08,127.67,127.66,12.94915694]
[1764578120011,1e-08,127.68,127.67,0.69]
[1764578120214,1e-08,127.68,127.67,22.81439309]
[1764578121197,1e-08,127.68,127.67,12.94854338]
[1764578121424,1e-08,127.68,127.67,32.69740738]
[1764578124221,0.66000001,127.68,127.67,28.56740738]
[1764578124425,1e-08,127.68,127.67,28.56740738]
[1764578125018,1e-08,127.68,127.67,29.25740738]
[1764578127824,1e-08,127.68,127.67,24.83155766]
[1764578128121,1e-08,127.68,127.67,29.25740738]
[1764578131228,1e-08,127.68,127.67,33.6832571]
[1764578131526,1e-08,127.68,127.67,57.22282318]
[1764578131817,0.1,127.72,127.68,0.7]
[1764578132029,0.1,127.72,127.71,12.2560901]
[1764578136924,0.1,127.72,127.71,7.83024038]
[1764578137132,0.1,127.72,127.71,12.2560901]
[1764578139139,0.82,127.72,127.71,7.83024038]
[1764578139438,8.90994492,127.72,127.71,7.83024038]
[1764578139810,8.90994492,127.72,127.71,12.2560901]
[1764578140424,0.1,127.72,127.71,12.2560901]
[1764578144631,0.1,127.72,127.71,12.9560901]
[1764578146436,0.1,127.72,127.71,12.2560901]
[1764578146437,0.82,127.72,127.71,12.2560901]
[1764578146617,0.1,127.72,127.71,12.2560901]
[1764578153733,0.1,127.72,127.71,12.9560901]
[1764578154437,0.1,127.72,127.71,11.3584915]
[1764578155447,0.1,127.72,127.71,10.6584915]
[1764578159344,0.1,127.73,127.71,34.36409247]
[1764578159544,0.1,127.73,127.72,3.51825112]
[1764578161048,0.68,127.78,127.75,16.308864]
[1764578161230,0.68,127.78,127.77,2.82825112]
[1764578161437,0.68,127.78,127.76,30.22336695]
[1764578161639,0.68,127.78,127.77,2.82825112]
[1764578162148,0.68,127.78,127.76,27.39511583]
[1764578162339,0.68,127.78,127.77,2.82825112]
[1764578164753,0.68,127.78,127.77,10.65481447]
[1764578165555,12.34994492,127.81,127.77,27.39297174]
[1764578165742,0.1,127.81,127.8,2.82825112]
[1764578166054,0.78,127.81,127.8,2.82825112]
[1764578166837,0.78,127.81,127.8,10.65297725]
[1764578167336,0.1,127.81,127.8,10.65297725]
[1764578169258,0.78,127.81,127.8,10.65297725]
[1764578169456,0.1,127.81,127.8,10.65297725]
[1764578170197,0.78,127.81,127.8,10.65297725]
[1764578172960,0.1,127.81,127.8,10.65297725]
[1764578173975,0.78,127.81,127.8,10.65297725]
[1764578175468,0.1,127.81,127.8,10.65297725]
[1764578175856,0.1,127.81,127.8,11.34297725]
[1764578176972,0.78,127.81,127.8,7.82472613]
[1764578177159,0.78,127.81,127.8,10.65297725]
[1764578177470,0.1,127.81,127.8,10.65297725]
[1764578177862,0.1,127.81,127.8,42.40484573]
[1764578177863,1e-08,127.81,127.8,42.40484573]
[1764578178068,1e-08,127.85,127.83,16.308864]
[1764578178254,1e-08,127.85,127.84,6.26825112]
[1764578178454,1e-08,127.85,127.84,6.95825112]
[1764578179155,1e-08,127.85,127.84,4.13]
[1764578179355,1e-08,127.85,127.84,6.95825112]
[1764578179564,1e-08,127.85,127.84,14.78052896]
[1764578181482,1e-08,127.85,127.84,11.95227784]
[1764578181779,1e-08,127.85,127.84,14.78052896]
[1764578183284,1e-08,127.85,127.84,11.34052896]
[1764578183465,1e-08,127.85,127.84,14.78052896]
[1764578183668,1e-08,127.85,127.84,11.95227784]
[1764578183868,1e-08,127.85,127.84,14.78052896]
[1764578186159,1e-08,127.85,127.84,26.09353344]
[1764578186775,1e-08,127.85,127.84,14.78052896]
[1764578188566,1e-08,127.85,127.84,26.418725]
[1764578188960,1e-08,127.85,127.84,37.73172948]
[1764578189280,1e-08,127.85,127.84,26.418725]
[1764578189871,1e-08,127.85,127.84,23.59047388]
[1764578190176,1e-08,127.85,127.84,14.78052896]
[1764578190374,1e-08,127.85,127.84,31.08939296]
[1764578192981,1e-08,127.85,127.84,27.64939296]
[1764578193185,1e-08,127.85,127.84,24.13114184]
[1764578193378,0.68000001,127.85,127.84,24.13114184]
[1764578193982,1e-08,127.85,127.84,26.95939296]
[1764578195098,1e-08,127.85,127.84,24.13114184]
[1764578195387,0.68000001,127.85,127.84,24.13114184]
[1764578196893,0.68000001,127.85,127.84,7.82227784]
[1764578197258,0.68000001,127.85,127.83,27.38009001]
[1764578197487,0.68000001,127.85,127.83,30.20834113]
[1764578197673,0.68000001,127.85,127.83,27.38009001]
[1764578198392,1e-08,127.85,127.83,30.20834113]
[1764578198571,0.68000001,127.85,127.83,30.20834113]
[1764578198772,1e-08,127.85,127.84,2.82825112]
[1764578199162,1e-08,127.85,127.84,6.95825112]
[1764578199361,1e-08,127.85,127.84,14.78052896]
[1764578199556,1e-08,127.85,127.84,17.91495673]
[1764578200889,1e-08,127.85,127.84,14.78052896]
[1764578201080,1e-08,127.85,127.84,17.91495673]
[1764578201481,1e-08,127.85,127.84,14.78052896]
[1764578202594,1e-08,127.85,127.84,14.09052896]
[1764578203166,1e-08,127.85,127.84,14.78052896]
[1764578203594,0.68000001,127.85,127.84,7.82227784]
[1764578205121,9.48994493,127.85,127.84,7.82227784]
[1764578205478,8.80994492,127.84,127.81,19.55965535]
[1764578205709,8.80994492,127.84,127.81,30.21202038]
[1764578205710,0.68,127.84,127.81,30.21202038]
[1764578206012,0.68,127.83,127.81,30.21202038]
[1764578206181,0.68000001,127.85,127.82,3.51825112]
[1764578206377,0.68,127.84,127.82,2.82825112]
[1764578207294,0.68,127.84,127.83,7.82288977]
[1764578208306,0.68,127.84,127.82,27.38225628]
[1764578210791,3.50825112,127.84,127.82,7.82350179]
[1764578211193,9.48994492,127.83,127.82,7.82350179]
[1764578212192,9.48994492,127.83,127.8,27.38574875]
[1764578212399,0.68,127.82,127.8,27.38574875]
[1764578214414,0.68,127.82,127.8,19.56102262]
[1764578216219,0.68,127.82,127.8,27.38574875]
[1764578217208,0.68,127.82,127.8,28.09574875]
[1764578217514,18.57786414,127.85,127.8,74.36271202]
[1764578217723,0.72,127.84,127.81,5.1233326]
[1764578218220,0.72,127.84,127.82,27.38225628]
[1764578221115,8.80994492,127.83,127.82,7.82350179]
[1764578221493,9.52994492,127.83,127.82,7.82350179]
[1764578222286,9.52994492,127.83,127.8,27.38542932]
[1764578222490,0.72,127.82,127.8,27.38542932]
[1764578225613,5.1333326,127.82,127.8,27.38542932]
[1764578225795,13.22327752,127.81,127.8,27.38542932]
[1764578225991,13.94327752,127.81,127.8,7.82472613]
[1764578226417,13.94327752,127.81,127.78,27.39059557]
[1764578226617,0.72,127.8,127.78,27.39059557]
[1764578226817,8.80994492,127.79,127.78,27.39059557]
[1764578227290,13.94327752,127.79,127.78,27.39059557]
[1764578228020,9.52994492,127.79,127.76,66.53069111]
[1764578228221,0.72,127.78,127.76,66.53069111]
[1764578231297,9.52994492,127.79,127.76,67.24069111]
[1764578231602,0.72,127.78,127.76,67.24069111]
[1764578231810,0.72,127.78,127.76,66.53069111]
[1764578233410,9.52994492,127.79,127.76,67.24069111]
[1764578233606,8.80994492,127.79,127.76,66.53069111]
[1764578233823,0.72,127.78,127.76,66.53069111]
[1764578235518,0.72,127.78,127.76,27.39511583]
[1764578237222,0.72,127.78,127.76,31.80844843]
[1764578237424,1e-08,127.85,127.77,5.1233326]
[1764578237745,8.80994492,127.81,127.78,4.4133326]
[1764578237937,8.80994492,127.81,127.78,5.1233326]
[1764578238223,9.52994492,127.81,127.78,5.1233326]
[1764578238810,9.52994492,127.81,127.79,27.38868455]
[1764578239225,0.72,127.8,127.79,27.38868455]
[1764578240314,8.80994492,127.82,127.79,27.38868455]
[1764578240514,9.52994492,127.82,127.79,32.51201715]
[1764578240716,0.72,127.81,127.79,31.80201715]
[1764578241037,0.72,127.81,127.79,27.38868455]
[1764578242633,8.80994492,127.8,127.79,27.38868455]
[1764578243033,9.52994492,127.8,127.77,27.39297174]
[1764578243225,0.72,127.79,127.77,27.39297174]
[1764578243730,9.52994492,127.8,127.77,28.10297174]
[1764578243927,8.80994492,127.8,127.77,27.39297174]
[1764578244112,4.4133326,127.81,127.78,5.1233326]
[1764578244113,9.52994492,127.81,127.78,5.1233326]
[1764578244430,0.72,127.8,127.78,5.1233326]
[1764578244610,8.80994492,127.81,127.79,5.1233326]
[1764578244806,8.80994492,127.81,127.79,0.71]
[1764578245131,8.80994492,127.81,127.8,7.82472613]
[1764578246022,9.46994492,127.83,127.8,32.51987406]
[1764578247428,9.52994492,127.82,127.8,27.38654146]
[1764578247627,8.80994492,127.82,127.8,27.38654146]
[1764578247932,9.52994492,127.82,127.8,27.38654146]
[1764578250832,8.5733326,127.81,127.79,7.82504129]
[1764578251035,13.22327752,127.8,127.79,7.82504129]
[1764578251221,8.80994492,127.79,127.78,19.56406452]
[1764578251413,9.52994492,127.79,127.78,19.56406452]
[1764578251934,9.52994492,127.79,127.77,7.82656335]
[1764578252335,9.52994492,127.79,127.77,27.39297174]
[1764578254814,0.72,127.77,127.75,19.56830225]
[1764578255032,4.4133326,127.76,127.72,7.82924367]
[1764578255226,4.4133326,127.76,127.71,8.03006338]
[1764578255227,4.4133326,127.73,127.71,8.03006338]
[1764578255531,4.4133326,127.73,127.71,0.2]
[1764578255832,9.52994492,127.72,127.71,8.03024038]
[1764578256039,9.52994492,127.72,127.71,0.2]
[1764578256334,9.52994492,127.72,127.71,8.03024038]
[1764578256935,13.94327752,127.72,127.71,0.2]
[1764578257236,17.40327752,127.72,127.71,0.2]
[1764578257739,12.98994492,127.72,127.71,8.03024038]
[1764578257913,12.98994492,127.72,127.71,0.2]
[1764578258335,17.40327752,127.72,127.71,8.03024038]
[1764578259123,12.98994492,127.72,127.71,8.03024038]
[1764578260731,4.4133326,127.74,127.71,8.03024038]
[1764578260907,8.80994492,127.73,127.71,8.03024038]
[1764578261111,9.52994492,127.73,127.71,8.03024038]
[1764578261426,5.1333326,127.72,127.71,8.03024038]
[1764578261814,8.5933326,127.72,127.71,8.03024038]
[1764578263139,8.5933326,127.72,127.71,0.2]
[1764578264848,25.23290482,127.72,127.71,0.2]
[1764578267640,17.40327752,127.72,127.71,0.2]
[1764578267820,12.26994492,127.72,127.71,8.03024038]
[1764578268149,8.80994492,127.72,127.71,8.03024038]
[1764578269016,13.94327752,127.72,127.71,0.2]
[1764578270249,21.77290482,127.72,127.71,0.2]
[1764578272445,13.94327752,127.72,127.71,0.2]
[1764578273250,25.23290482,127.72,127.71,0.2]
[1764578274048,17.40327752,127.72,127.71,0.2]
[1764578275656,16.68327752,127.72,127.71,0.2]
[1764578275863,12.26994492,127.72,127.71,8.74024038]
[1764578276030,8.80994492,127.72,127.71,8.74024038]
[1764578281851,16.308864,127.76,127.71,8.74024038]
[1764578282057,41.12546432,127.8,127.74,16.308864]
[1764578282058,3.51924949,127.8,127.74,16.308864]
[1764578282358,4.15,127.79,127.75,2.82924949]
[1764578282563,4.15,127.79,127.75,3.53924949]
[1764578282794,8.80994492,127.78,127.76,0.71]
[1764578283280,8.80994492,127.78,127.77,7.82656335]
[1764578283659,8.80994492,127.78,127.77,8.53656335]
[1764578283859,8.80994492,127.78,127.77,7.82656335]
[1764578284275,8.80994492,127.78,127.77,8.53656335]
[1764578284480,8.80994492,127.78,127.76,7.82717595]
[1764578284788,8.80994492,127.78,127.76,8.53717595]
[1764578284958,8.80994492,127.78,127.77,0.71]
[1764578285560,8.80994492,127.78,127.76,27.39511583]
[1764578285760,8.80994492,127.78,127.76,28.10511583]
[1764578286358,8.80994492,127.78,127.76,30.22436532]
[1764578286678,8.80994492,127.78,127.77,8.53656335]
[1764578287583,8.80994492,127.78,127.77,7.82656335]
[1764578288182,8.80994492,127.78,127.77,8.53656335]
[1764578288591,8.80994492,127.78,127.76,19.56793988]
[1764578288876,8.80994492,127.78,127.76,23.10718937]
[1764578289771,8.80994492,127.78,127.76,30.93436532]
[1764578290089,3.46,127.79,127.77,3.53924949]
[1764578290264,12.26994492,127.79,127.78,2.82924949]
[1764578290460,8.80994492,127.8,127.78,3.53924949]
[1764578290878,0.69,127.79,127.77,2.82924949]
[1764578291188,8.80994492,127.8,127.78,2.82924949]
[1764578291390,8.80994492,127.8,127.79,2.82924949]
[1764578291594,8.80994492,127.8,127.79,3.53924949]
[1764578292162,8.80994492,127.8,127.79,11.36458793]
[1764578293374,12.26994492,127.81,127.79,30.92793404]
[1764578293685,12.26994492,127.81,127.8,0.71]
[1764578293983,8.80994492,127.82,127.8,3.53924949]
[1764578294183,8.80994492,127.82,127.81,2.82924949]
[1764578294385,8.80994492,127.82,127.81,3.53924949]
[1764578294989,3.46,127.84,127.81,3.53924949]
[1764578295181,3.46,127.84,127.82,0.71]
[1764578295488,3.46,127.84,127.83,7.82288977]
[1764578295489,12.26994492,127.84,127.83,7.82288977]
[1764578296868,12.26994492,127.84,127.83,8.53288977]
[1764578297677,8.80994493,127.85,127.83,30.91936369]
[1764578299198,0.69,127.84,127.83,7.82288977]
[1764578299367,9.49994493,127.85,127.83,7.82288977]
[1764578299563,9.49994493,127.85,127.83,27.3801142]
[1764578300493,9.49994493,127.85,127.83,28.0901142]
[1764578301484,9.49994493,127.85,127.83,27.3801142]
[1764578301693,9.49994493,127.85,127.83,22.38647392]
[1764578301888,9.49994493,127.85,127.83,19.55722443]
[1764578302071,9.49994493,127.85,127.83,22.38647392]
[1764578302396,0.69,127.84,127.83,19.55722443]
[1764578302601,9.49994493,127.85,127.83,19.55722443]
[1764578303886,4.15,127.84,127.83,27.3801142]
[1764578304762,4.15,127.84,127.83,7.82288977]
[1764578305805,12.95994492,127.84,127.83,7.82288977]
[1764578306092,8.80994492,127.83,127.81,27.38324918]
[1764578306273,9.48994492,127.83,127.81,27.38324918]
[1764578306587,9.48994492,127.82,127.81,27.38324918]
[1764578307575,9.48994492,127.82,127.81,7.82411391]
[1764578307782,12.94994492,127.82,127.81,7.82411391]
[1764578308108,8.80994492,127.81,127.77,19.56640839]
[1764578308386,8.80994492,127.79,127.77,30.22222123]
[1764578308589,12.26994492,127.82,127.78,3.54924949]
[1764578308787,12.26994492,127.82,127.79,2.82924949]
[1764578308788,12.94994492,127.82,127.79,2.82924949]
[1764578308985,12.94994492,127.82,127.79,3.54924949]
[1764578309965,12.26994492,127.82,127.8,0.72]
[1764578310165,12.94994492,127.82,127.81,7.82411391]
[1764578310994,0.68000001,127.85,127.81,30.93364819]
[1764578311172,8.80994492,127.84,127.82,0.72]
[1764578312096,8.80994492,127.84,127.79,27.38868455]
[1764578312275,9.52994492,127.84,127.8,2.82924949]
[1764578312476,9.52994492,127.84,127.8,3.53924949]
[1764578312694,9.52994492,127.84,127.81,0.71]
[1764578314096,9.52994492,127.84,127.82,7.82350179]
[1764578314393,8.80994492,127.84,127.82,30.21150577]
[1764578314699,8.80994492,127.84,127.83,0.71]
[1764578315994,3.46000001,127.85,127.83,0.71]
[1764578316180,12.26994493,127.85,127.84,7.82227784]
[1764578316494,8.80994493,127.85,127.84,7.82227784]
[1764578318500,9.52994493,127.85,127.84,7.82227784]
[1764578319197,8.80994493,127.85,127.84,7.82227784]
[1764578319999,9.52994493,127.85,127.84,7.82227784]
[1764578321107,9.52994493,127.85,127.83,27.3801142]
[1764578323574,1e-08,127.85,127.83,27.3801142]
[1764578323776,1e-08,127.85,127.84,0.71]
[1764578324984,1e-08,127.85,127.83,30.91936369]
[1764578325601,1e-08,127.85,127.84,0.71]
[1764578325803,1e-08,127.85,127.84,8.53227784]
[1764578326005,1e-08,127.85,127.84,7.82227784]
[1764578327100,8.80994493,127.85,127.84,7.82227784]
[1764578327301,9.52994493,127.85,127.84,7.82227784]
[1764578329908,9.52994493,127.85,127.83,27.3801142]
[1764578331604,8.80994493,127.85,127.83,27.3801142]
[1764578331811,9.52994493,127.85,127.83,27.3801142]
[1764578332780,3.44,127.84,127.83,27.3801142]
[1764578332982,1e-08,127.85,127.83,27.3801142]
[1764578333202,1e-08,127.85,127.84,3.53924949]
[1764578333677,8.80994492,127.84,127.83,7.82288977]
[1764578333876,8.80994492,127.84,127.82,7.82350179]
[1764578334108,0.72,127.83,127.82,7.82350179]
[1764578334287,9.52994492,127.83,127.82,7.82350179]
[1764578334486,8.80994492,127.83,127.82,7.82350179]
[1764578337904,8.80994492,127.82,127.78,7.82595085]
[1764578338105,11.63919441,127.8,127.78,7.82595085]
[1764578338308,8.80994492,127.8,127.78,7.82595085]
[1764578338610,8.80994492,127.8,127.78,8.50595085]
[1764578338904,8.80994492,127.8,127.78,28.07082798]
[1764578339992,9.49994492,127.82,127.79,0.68]
[1764578340182,3.46,127.83,127.8,4.41618312]
[1764578340599,4.15,127.83,127.8,4.41618312]
[1764578340807,4.15,127.83,127.8,5.09618312]
[1764578341713,8.80994492,127.82,127.8,0.68]
[1764578342013,9.49994492,127.82,127.8,27.38654146]
[1764578343021,8.80994492,127.82,127.8,32.48272458]
[1764578343506,9.49994492,127.81,127.8,27.38654146]
[1764578343822,8.80994492,127.8,127.78,7.82595085]
[1764578343994,9.49994492,127.8,127.78,7.82595085]
[1764578347389,0.69,127.79,127.78,7.82595085]
[1764578347591,9.49994492,127.79,127.78,7.82595085]
[1764578348613,9.49994492,127.79,127.77,27.39211878]
[1764578348815,8.80994492,127.78,127.77,27.39211878]
[1764578350298,3.46,127.8,127.77,32.4883019]
[1764578350612,8.80994492,127.79,127.77,32.4883019]
[1764578350810,8.80994492,127.79,127.77,28.07211878]
[1764578351398,4.15,127.81,127.78,0.68]
[1764578351597,4.15,127.81,127.78,5.09618312]
[1764578353113,4.15,127.81,127.79,7.82533844]
[1764578354323,3.46,127.81,127.79,7.82533844]
[1764578354503,9.49994492,127.8,127.79,7.82533844]
[1764578354707,8.80994492,127.79,127.76,7.82717595]
[1764578355003,13.22612804,127.77,127.75,7.82752827]
[1764578355202,13.22612804,127.77,127.72,4.41618312]
[1764578355203,13.22612804,127.77,127.73,19.57137941]
[1764578355403,8.80994492,127.74,127.73,7.82875507]
[1764578355600,16.68612804,127.75,127.73,7.82875507]
[1764578355919,8.80994492,127.74,127.73,7.82875507]
[1764578356126,7.87618312,127.75,127.73,7.82875507]
[1764578356127,8.56618312,127.75,127.73,7.82875507]
[1764578356312,8.80994492,127.77,127.74,5.09618312]
[1764578356496,9.49994492,127.77,127.74,0.68]
[1764578356694,9.49994492,127.77,127.74,5.09618312]
[1764578357120,9.49994492,127.77,127.75,7.82778864]
[1764578358203,13.91612804,127.77,127.75,7.82778864]
[1764578360025,13.22612804,127.77,127.75,7.82778864]
[1764578360217,13.91612804,127.77,127.75,7.82778864]
[1764578361602,13.22612804,127.77,127.75,7.82778864]
[1764578361805,9.49994492,127.76,127.75,7.82778864]
[1764578362003,9.49994492,127.76,127.74,0.68]
[1764578362004,8.80994492,127.75,127.74,7.82826792]
[1764578362522,8.80994492,127.76,127.74,7.82826792]
[1764578362712,0.69,127.75,127.74,7.82826792]
[1764578363022,13.22612804,127.76,127.74,7.82826792]
[1764578363232,12.95994492,127.75,127.74,7.82826792]
[1764578363722,12.26994492,127.75,127.74,7.82826792]
[1764578364026,12.95994492,127.75,127.74,7.82826792]
[1764578364329,8.80994492,127.74,127.73,27.40155013]
[1764578364503,9.49994492,127.74,127.73,27.40155013]
[1764578364703,8.80994492,127.74,127.73,27.40155013]
[1764578364933,9.49994492,127.74,127.73,27.40155013]
[1764578365422,8.80994492,127.74,127.73,27.40155013]
[1764578367205,8.80994492,127.74,127.73,19.57253581]
[1764578367706,8.80994492,127.74,127.73,20.23253581]
[1764578368423,8.80994492,127.74,127.73,28.06155013]
[1764578370204,0.67,127.74,127.73,27.40155013]
[1764578370408,0.67,127.74,127.73,19.57253581]
[1764578370931,12.93994492,127.75,127.73,19.57253581]
[1764578371128,13.89612804,127.74,127.71,8.03004019]
[1764578371533,0.67,127.73,127.71,8.03004019]
[1764578371716,3.46,127.72,127.71,8.69004019]
[1764578371915,66.41618312,127.76,127.71,32.02182428]
[1764578372220,12.26994492,127.75,127.73,4.41618312]
[1764578372417,12.26994492,127.75,127.74,7.82840144]
[1764578372609,3.46,127.75,127.74,7.82840144]
[1764578372806,8.80994492,127.77,127.74,32.47558816]
[1764578373010,3.46,127.77,127.75,5.07618312]
[1764578373312,4.13,127.77,127.74,31.81558816]
[1764578373628,4.13,127.77,127.74,32.47558816]
[1764578373827,4.13,127.77,127.74,28.05940504]
[1764578374021,3.46,127.77,127.74,32.47558816]
[1764578374430,4.13,127.77,127.74,32.47558816]
[1764578378033,3.46,127.77,127.75,5.07618312]
[1764578378234,3.46,127.77,127.76,4.41618312]
[1764578378432,3.46,127.77,127.76,5.07618312]
[1764578380142,3.46,127.77,127.76,12.90335907]
[1764578381620,3.46,127.77,127.76,12.24335907]
[1764578381820,3.46,127.77,127.76,12.90335907]
[1764578382020,12.26994492,127.81,127.76,32.47129895]
[1764578382231,0.67,127.8,127.77,5.07618312]
[1764578382837,0.67,127.8,127.78,4.41618312]
[1764578383037,0.67,127.8,127.77,5.07618312]
[1764578384239,0.67,127.8,127.78,7.82595085]
[1764578385442,0.67,127.8,127.78,12.24213397]
[1764578386141,0.67,127.8,127.78,12.90213397]
[1764578386322,0.67,127.8,127.78,12.24213397]
[1764578387727,8.80994492,127.79,127.78,7.82595085]
[1764578388137,0.67,127.79,127.78,7.82595085]
[1764578389163,9.47994492,127.79,127.78,7.82595085]
[1764578390143,8.80994492,127.78,127.77,27.39188042]
[1764578390347,4.13,127.78,127.77,27.39188042]
[1764578390643,4.13,127.78,127.77,7.82656335]
[1764578390818,12.93994492,127.78,127.77,7.82656335]
[1764578391642,12.26994492,127.78,127.77,7.82656335]
[1764578392861,12.93994492,127.78,127.77,7.82656335]
[1764578393351,12.26994492,127.78,127.77,7.82656335]
[1764578396835,12.26994492,127.78,127.77,12.93274647]
[1764578397545,62.0,127.81,127.77,32.49915486]
[1764578397752,3.46,127.8,127.79,4.41618312]
[1764578398144,3.46,127.8,127.79,5.13618312]
[1764578398349,3.46,127.8,127.79,3.54529243]